9CCC - Level 9 Cost Centre Code,Service area,Service sub division,TVBC Service,Expense type,Detailed expense type,TVBC account code,Date Paid,Transaction Reference, Nett Value ,Supplier Name
E534,Central Services to the Public,Management & Support Services,Estates and Economic Development ,Premises related Expenditure,Water Services,Water And Sewerage Charges,20/09/2018,250924,-2614.84,Business Stream
E532,Central Services to the Public,Management & Support Services,Estates and Economic Development ,Premises related Expenditure,Energy Costs,Gas,27/09/2018,251441,-1142.11,Total Gas & Power Ltd
E532,Central Services to the Public,Management & Support Services,Estates and Economic Development ,Premises related Expenditure,Energy Costs,Gas,27/09/2018,251442,-573.91,Total Gas & Power Ltd
W600,Environmental & Regulatory,Street Cleansing (not chargeable to Highways),Environmental,Supplies & Services,"Equipment, Furniture & Materials",Purchase Equip + Materials,13/09/2018,246081,-457,Sweeperhire
E307,Planning & Development,Economic Development,Estates and Economic Development ,Supplies & Services,Grants & Subscriptions,Grants,07/09/2018,250603,500,Hamilton Park Tcm Ltd
L384,Cultural & Related,Culture & Heritage,Community and Leisure ,Supplies & Services,Services,Tutors,06/09/2018,250224,500,Personal Data - Data Protection Act 1998
E532,Central Services to the Public,Management & Support Services,Estates and Economic Development ,Premises related Expenditure,Energy Costs,Gas,27/09/2018,251445,485.46,Total Gas & Power Ltd
E700,Cultural & Related,Recreation & Sport,Estates and Economic Development ,Premises related Expenditure,Water Services,Water And Sewerage Charges,20/09/2018,250927,517.64,Business Stream
T700,"Highways, Roads & Transport",Public Transport,Plan Pol & Transport,Third Party Payments,Transport Operators in Respect of Concessionary Fares,Voluntary Orgs Reimbursement,13/09/2018,251051,518,Thorngate Village Care Group
W700,Environmental & Regulatory,Waste management,Environmental,Employees,Indirect Employee Expenses,Agency Staff - Waged Posts,13/09/2018,250376,435.75,Simple Recruitment Services Ltd
W700,Environmental & Regulatory,Waste management,Environmental,Employees,Indirect Employee Expenses,Agency Staff - Waged Posts,06/09/2018,250363,437.25,24-7 Staffing
W700,Environmental & Regulatory,Waste management,Environmental,Employees,Indirect Employee Expenses,Agency Staff - Waged Posts,06/09/2018,250365,437.25,24-7 Staffing
E203,External Trading Accounts,Business Parks,Estates and Economic Development ,Premises related Expenditure,Energy Costs,Gas,27/09/2018,251446,507.1,Total Gas & Power Ltd
T700,"Highways, Roads & Transport",Public Transport,Plan Pol & Transport,Third Party Payments,Transport Operators in Respect of Concessionary Fares,Voluntary Orgs Reimbursement,27/09/2018,251739,550.8,Broughton Good Neighbours
L391,Cultural & Related,Culture & Heritage,Community and Leisure ,Supplies & Services,Services,Project Consultancy - Policy,06/09/2018,250058,555,The Artroom
W900,Central Services to the Public,Management & Support Services,Environmental,Supplies & Services,"Clothes, Uniforms & Laundry",Clothing + Uniforms,27/09/2018,251325,141.38,Arco Ltd
W900,Central Services to the Public,Management & Support Services,Environmental,Supplies & Services,Miscellaneous Expenses,Health And Safety,27/09/2018,251325,322.19,Arco Ltd
L391,Cultural & Related,Culture & Heritage,Community and Leisure ,Supplies & Services,Services,Project Consultancy - Policy,06/09/2018,250352,471,Rhubarb Theatre
E205,External Trading Accounts,Property Investments,Estates and Economic Development ,Premises related Expenditure,Grounds Maintenance Costs,Grounds Maintenance Contracts,20/09/2018,251576,473.19,Landmarks Sustainability Ltd
E601,Central Services to the Public,Management & Support Services,Estates and Economic Development ,Transport Related Expenditure,Direct Transport Costs,Repair Materials,06/09/2018,249279,40.5,Engraved Tags
W100,Cultural & Related,Open Spaces,Environmental,Transport Related Expenditure,Direct Transport Costs,Repair Materials,06/09/2018,249279,207,Engraved Tags
W600,Environmental & Regulatory,Street Cleansing (not chargeable to Highways),Environmental,Transport Related Expenditure,Direct Transport Costs,Repair Materials,06/09/2018,249279,108,Engraved Tags
W700,Environmental & Regulatory,Waste management,Environmental,Transport Related Expenditure,Direct Transport Costs,Repair Materials,06/09/2018,249279,108,Engraved Tags
W805,Central Services to the Public,Management & Support Services,Environmental,Transport Related Expenditure,Direct Transport Costs,Repair Materials,06/09/2018,249279,13.5,Engraved Tags
W800,Central Services to the Public,Management & Support Services,Environmental,Transport Related Expenditure,Direct Transport Costs,Workshop Consumables,06/09/2018,250065,482.8,Boc  Ltd
L391,Cultural & Related,Culture & Heritage,Community and Leisure ,Supplies & Services,Services,Project Consultancy - Policy,13/09/2018,250676,484,Rhubarb Theatre
W100,Cultural & Related,Open Spaces,Environmental,Transport Related Expenditure,Direct Transport Costs,Repair Materials,27/09/2018,251758,486.86,Hyphose Ltd
H200,Environmental & Regulatory,Regulatory Services,Housing and Environmental Health ,Supplies & Services,"Equipment, Furniture & Materials",Purchase Equip + Materials,27/09/2018,251769,490,Chartered Inst. Of Environmental Health
E203,External Trading Accounts,Business Parks,Estates and Economic Development ,Supplies & Services,Communications & Computing,Land Line Telephone Charges,27/09/2018,252090,27.18,Virgin Media Payments Ltd
E512,Cultural & Related,Culture & Heritage,Estates and Economic Development ,Supplies & Services,Communications & Computing,Land Line Telephone Charges,27/09/2018,252090,26,Virgin Media Payments Ltd
E513,Cultural & Related,Culture & Heritage,Estates and Economic Development ,Supplies & Services,Communications & Computing,Land Line Telephone Charges,27/09/2018,252090,39,Virgin Media Payments Ltd
I302,Central Services to the Public,Management & Support Services,IT,Supplies & Services,Communications & Computing,Communication Links,27/09/2018,252090,26,Virgin Media Payments Ltd
I401,Central Services to the Public,Management & Support Services,IT,Supplies & Services,Communications & Computing,Communication Links,27/09/2018,252090,67,Virgin Media Payments Ltd
L131,Cultural & Related,Recreation & Sport,Community and Leisure ,Supplies & Services,Communications & Computing,Land Line Telephone Charges,27/09/2018,252090,26,Virgin Media Payments Ltd
L134,Cultural & Related,Recreation & Sport,Community and Leisure ,Supplies & Services,Communications & Computing,Land Line Telephone Charges,27/09/2018,252090,13.05,Virgin Media Payments Ltd
L135,Cultural & Related,Recreation & Sport,Community and Leisure ,Supplies & Services,Communications & Computing,Land Line Telephone Charges,27/09/2018,252090,13,Virgin Media Payments Ltd
L381,Cultural & Related,Culture & Heritage,Community and Leisure ,Supplies & Services,Communications & Computing,Communication Links,27/09/2018,252090,74.08,Virgin Media Payments Ltd
T610,"Highways, Roads & Transport",Parking Services,Plan Pol & Transport,Supplies & Services,Communications & Computing,Alarm Lines,27/09/2018,252090,37,Virgin Media Payments Ltd
W900,Central Services to the Public,Management & Support Services,Environmental,Supplies & Services,Communications & Computing,Land Line Telephone Charges,27/09/2018,252090,53.28,Virgin Media Payments Ltd
X147,Central Services to the Public,Emergency Planning,Corporate & Democratic,Supplies & Services,Communications & Computing,Land Line Telephone Charges,27/09/2018,252090,91,Virgin Media Payments Ltd
W100,Cultural & Related,Open Spaces,Environmental,Supplies & Services,Miscellaneous Expenses,Waste Collection,06/09/2018,249849,496.48,Raymond Brown Minerals & Recycling Ltd
I304,Central Services to the Public,Management & Support Services,IT,Supplies & Services,Communications & Computing,Hardware Maintenance,27/09/2018,251766,497.52,Nouveau Solutions Ltd
E102,Central Services to the Public,Management & Support Services,Estates and Economic Development ,Supplies & Services,Services,Training Courses,27/09/2018,251862,499,Hcs Safety Ltd
W700,Environmental & Regulatory,Waste management,Environmental,Employees,Indirect Employee Expenses,Agency Staff - Waged Posts,06/09/2018,250364,524.7,24-7 Staffing
L251,Cultural & Related,Open Spaces,Community and Leisure ,Premises related Expenditure,Grounds Maintenance Costs,Gm - Additional Works,06/09/2018,250017,525,Personal Data - Data Protection Act 1998
T600,"Highways, Roads & Transport",Parking Services,Plan Pol & Transport,Supplies & Services,Services,Professional Fees,20/09/2018,250656,632.45,Patrol
B101,Central Services to the Public,Management & Support Services,Legal & Democratic,Supplies & Services,Services,Professional Fees,13/09/2018,251055,530,Womble Bond Dickinson (Uk) Llp
W100,Cultural & Related,Open Spaces,Environmental,Transport Related Expenditure,Direct Transport Costs,Repair Materials,20/09/2018,251327,533.84,Spaldings (Uk) Limited
W700,Environmental & Regulatory,Waste management,Environmental,Employees,Indirect Employee Expenses,Agency Staff - Waged Posts,13/09/2018,251045,537.74,24-7 Staffing
E534,Central Services to the Public,Management & Support Services,Estates and Economic Development ,Premises related Expenditure,Water Services,Water And Sewerage Charges,06/09/2018,250251,646.33,Business Stream
R850,Central Services to the Public,Local Tax Collection,Revenues,Supplies & Services,Miscellaneous Expenses,Data Access Requests,06/09/2018,249794,29.07,Tameside Mbc
R852,Central Services to the Public,Local Tax Collection,Revenues,Supplies & Services,Miscellaneous Expenses,Data Access Requests,06/09/2018,249794,555.8,Tameside Mbc
R931,Housing Services,Housing Benefits ,Revenues,Supplies & Services,Miscellaneous Expenses,Data Access Requests,06/09/2018,249794,7.83,Tameside Mbc
E102,Central Services to the Public,Management & Support Services,Estates and Economic Development ,Supplies & Services,Services,Training Courses,20/09/2018,251482,550,Hcs Safety Ltd
W100,Cultural & Related,Open Spaces,Environmental,Supplies & Services,Miscellaneous Expenses,Waste Collection,06/09/2018,248864,553.48,Raymond Brown Minerals & Recycling Ltd
W100,Cultural & Related,Open Spaces,Environmental,Supplies & Services,Services,Training Courses,27/09/2018,252000,665,Sparsholt College Hampshire
1651,Environmental & Regulatory,Regulatory Services,Housing and Environmental Health ,Supplies & Services,Grants and subscriptions,Capital Grants,20/09/2018,251575,675,Liftech Systems (Se) Ltd
F179,Central Services to the Public,Management & Support Services,Finance,Supplies & Services,"Printing, Stationery & General Office Expenses",Photocopying Costs,06/09/2018,249525,571.64,Ricoh Uk Ltd
E532,Central Services to the Public,Management & Support Services,Estates and Economic Development ,Premises related Expenditure,Repairs Alterations & Maintenance of Buildings,Building Maint - Non Estates,27/09/2018,251980,571.67,Btu Installation & Maintenance Ltd
E532,Central Services to the Public,Management & Support Services,Estates and Economic Development ,Premises related Expenditure,Energy Costs,Gas,06/09/2018,249048,573.91,Total Gas & Power Ltd
E512,Cultural & Related,Culture & Heritage,Estates and Economic Development ,Supplies & Services,Miscellaneous Expenses,Waste Collection,13/09/2018,250915,188,Suez Recycling And Recovery Uk Ltd
E532,Central Services to the Public,Management & Support Services,Estates and Economic Development ,Supplies & Services,Miscellaneous Expenses,Waste Collection,13/09/2018,250915,386.37,Suez Recycling And Recovery Uk Ltd
W700,Environmental & Regulatory,Waste management,Environmental,Transport Related Expenditure,Direct Transport Costs,Licences,20/09/2018,251342,705,Dennis Eagle Ltd
W700,Environmental & Regulatory,Waste management,Environmental,Transport Related Expenditure,Direct Transport Costs,Repair Materials,06/09/2018,249784,596.91,Dennis Eagle Ltd
B101,Central Services to the Public,Management & Support Services,Legal & Democratic,Employees,Indirect Employee Expenses,Recruitment Consultants,20/09/2018,250016,613.6,Shl Group Limited
E305,Planning & Development,Economic Development,Estates and Economic Development ,Supplies & Services,Grants & Subscriptions,Grants,26/09/2018,252014,750,Saxon  Safety Ltd
H125,Central Services to the Public,Management & Support Services,Housing and Environmental Health ,Supplies & Services,Services,Training Courses,27/09/2018,251464,625,Idox Software Ltd
L391,Cultural & Related,Culture & Heritage,Community and Leisure ,Supplies & Services,Services,Project Consultancy - Policy,13/09/2018,250350,750,Dark Encounters Events Ltd
R850,Central Services to the Public,Local Tax Collection,Revenues,Supplies & Services,Services,Professional Fees,13/09/2018,250610,625,Inform Cpi Ltd
E305,Planning & Development,Economic Development,Estates and Economic Development ,Supplies & Services,Grants & Subscriptions,Grants,12/09/2018,250933,750,Lively Fox
T110,Planning & Development,Planning Policy,Plan Pol & Transport,Supplies & Services,Services,Project Consultancy - Policy,27/09/2018,251869,630,Bluestone Planning
W800,Central Services to the Public,Management & Support Services,Environmental,Supplies & Services,Services,Training Courses,06/09/2018,250218,635,Mot Learning Services
E532,Central Services to the Public,Management & Support Services,Estates and Economic Development ,Premises related Expenditure,Energy Costs,Gas,27/09/2018,251443,648.67,Total Gas & Power Ltd
W701,Environmental & Regulatory,Waste management,Environmental,Transport Related Expenditure,Contract Hire and Operating Leases,Vehicles-Hired\Leased,06/09/2018,249803,650,Trash Uk Limited
F001,Central Services to the Public,Management & Support Services,Finance,Supplies & Services,"Printing, Stationery & General Office Expenses",Postage Costs,13/09/2018,250344,661.07,Whistl Uk Ltd
L501,Central Services to the Public,Management & Support Services,Community and Leisure ,Supplies & Services,"Printing, Stationery & General Office Expenses",Photocopying Costs,13/09/2018,249529,666.12,Ricoh Uk Ltd
T600,"Highways, Roads & Transport",Parking Services,Plan Pol & Transport,Supplies & Services,"Clothes, Uniforms & Laundry",Clothing + Uniforms,27/09/2018,251463,667.98,Keltic
H220,Environmental & Regulatory,Regulatory Services,Housing and Environmental Health ,Employees,Indirect Employee Expenses,Temporary Staff,20/09/2018,251335,668,Oyster Partnership
E601,Central Services to the Public,Management & Support Services,Estates and Economic Development ,Third Party Payments,Other Establishments,Private Contractors,27/09/2018,251989,672,Alarms & Electrical (Devizes) Ltd
W700,Environmental & Regulatory,Waste management,Environmental,Employees,Indirect Employee Expenses,Agency Staff - Waged Posts,27/09/2018,251984,594.66,24-7 Staffing
W701,Environmental & Regulatory,Waste management,Environmental,Employees,Indirect Employee Expenses,Agency Staff - Waged Posts,27/09/2018,251984,87.45,24-7 Staffing
E601,Central Services to the Public,Management & Support Services,Estates and Economic Development ,Supplies & Services,Communications & Computing,Telephone Tracking System,13/09/2018,250003,48,Teletrac Navman (Uk) Ltd
H250,Environmental & Regulatory,Regulatory Services,Housing and Environmental Health ,Supplies & Services,Communications & Computing,Telephone Tracking System,13/09/2018,250003,6,Teletrac Navman (Uk) Ltd
H260,Environmental & Regulatory,Regulatory Services,Housing and Environmental Health ,Supplies & Services,Communications & Computing,Telephone Tracking System,13/09/2018,250003,12,Teletrac Navman (Uk) Ltd
L221,Cultural & Related,Open Spaces,Community and Leisure ,Supplies & Services,Communications & Computing,Telephone Tracking System,13/09/2018,250003,6,Teletrac Navman (Uk) Ltd
L241,Cultural & Related,Open Spaces,Community and Leisure ,Supplies & Services,Communications & Computing,Telephone Tracking System,13/09/2018,250003,6,Teletrac Navman (Uk) Ltd
T600,"Highways, Roads & Transport",Parking Services,Plan Pol & Transport,Supplies & Services,Communications & Computing,Telephone Tracking System,13/09/2018,250003,12,Teletrac Navman (Uk) Ltd
W100,Cultural & Related,Open Spaces,Environmental,Supplies & Services,Communications & Computing,Telephone Tracking System,13/09/2018,250003,246,Teletrac Navman (Uk) Ltd
W600,Environmental & Regulatory,Street Cleansing (not chargeable to Highways),Environmental,Supplies & Services,Communications & Computing,Telephone Tracking System,13/09/2018,250003,186.7,Teletrac Navman (Uk) Ltd
W700,Environmental & Regulatory,Waste management,Environmental,Supplies & Services,Communications & Computing,Telephone Tracking System,13/09/2018,250003,138,Teletrac Navman (Uk) Ltd
W701,Environmental & Regulatory,Waste management,Environmental,Supplies & Services,Communications & Computing,Telephone Tracking System,13/09/2018,250003,12,Teletrac Navman (Uk) Ltd
W805,Central Services to the Public,Management & Support Services,Environmental,Supplies & Services,Communications & Computing,Telephone Tracking System,13/09/2018,250003,18,Teletrac Navman (Uk) Ltd
R850,Central Services to the Public,Local Tax Collection,Revenues,Supplies & Services,"Printing, Stationery & General Office Expenses",Postage Costs,13/09/2018,250918,31.14,Royal Mail Group Ltd
R852,Central Services to the Public,Local Tax Collection,Revenues,Supplies & Services,"Printing, Stationery & General Office Expenses",Postage Costs,13/09/2018,250918,504.02,Royal Mail Group Ltd
R931,Housing Services,Housing Benefits ,Revenues,Supplies & Services,"Printing, Stationery & General Office Expenses",Postage Costs,13/09/2018,250918,78.83,Royal Mail Group Ltd
R933,Central Services to the Public,Local Tax Collection,Revenues,Supplies & Services,"Printing, Stationery & General Office Expenses",Postage Costs,13/09/2018,250918,78.82,Royal Mail Group Ltd
L386,Cultural & Related,Culture & Heritage,Community and Leisure ,Supplies & Services,Catering,Non-Contract Catering,13/09/2018,250647,703.38,Carlsberg Uk Ltd
1651,Environmental & Regulatory,Regulatory Services,Housing and Environmental Health ,Supplies & Services,Grants and subscriptions,Capital Grants,27/09/2018,252114,850.88,Spc Bathrooms Ltd
W700,Environmental & Regulatory,Waste management,Environmental,Transport Related Expenditure,Direct Transport Costs,Tyres,20/09/2018,251029,450.38,Tructyre Fleet Management
W701,Environmental & Regulatory,Waste management,Environmental,Transport Related Expenditure,Direct Transport Costs,Tyres,20/09/2018,251029,265.59,Tructyre Fleet Management
W701,Environmental & Regulatory,Waste management,Environmental,Transport Related Expenditure,Direct Transport Costs,Repair Materials,27/09/2018,251547,6.8,Md Services (Andover) Ltd
W800,Central Services to the Public,Management & Support Services,Environmental,Transport Related Expenditure,Direct Transport Costs,Workshop Consumables,27/09/2018,251547,427.72,Md Services (Andover) Ltd
W800,Central Services to the Public,Management & Support Services,Environmental,Transport Related Expenditure,Direct Transport Costs,Repair Materials,27/09/2018,251547,19.8,Md Services (Andover) Ltd
W800,Central Services to the Public,Management & Support Services,Environmental,Supplies & Services,"Equipment, Furniture & Materials",Purchase Tools,27/09/2018,251547,271.35,Md Services (Andover) Ltd
W800,Central Services to the Public,Management & Support Services,Environmental,Transport Related Expenditure,Direct Transport Costs,Oils,27/09/2018,251761,730.62,Fuchs Lubricants (Uk) Plc
T100,Planning & Development,Planning Policy,Plan Pol & Transport,Supplies & Services,"Printing, Stationery & General Office Expenses",Photocopying Costs,27/09/2018,251773,730.94,Ricoh Uk Ltd
W100,Cultural & Related,Open Spaces,Environmental,Employees,Indirect Employee Expenses,Advertising Of Vacancies,27/09/2018,250667,739.06,Newsquest Media Group Ltd
I301,Central Services to the Public,Management & Support Services,IT,Supplies & Services,"Equipment, Furniture & Materials",Maintenance Equip + Materials,06/09/2018,249774,741.67,Quadrant Security Group Ltd
I301,Central Services to the Public,Management & Support Services,IT,Supplies & Services,Communications & Computing,Purchase Of Telephones ,27/09/2018,251740,741.67,Quadrant Security Group Ltd
H220,Environmental & Regulatory,Regulatory Services,Housing and Environmental Health ,Employees,Indirect Employee Expenses,Advertising Of Vacancies,27/09/2018,251832,750,Chartered Inst. Of Environmental Health
X303,Central Services,Corporate & Democratic Core,Corporate & Democratic,Supplies & Services,"Equipment, Furniture & Materials",IT Supp and Serv AMP,06/09/2018,247289,750,Advanced Business Solutions
B221,Central Services to the Public,Elections,Legal & Democratic,Supplies & Services,"Printing, Stationery & General Office Expenses",Postage Costs,13/09/2018,250911,752.4,Financial Data Management Plc
T600,"Highways, Roads & Transport",Parking Services,Plan Pol & Transport,Supplies & Services,"Clothes, Uniforms & Laundry",Clothing + Uniforms,06/09/2018,249251,761.65,Keltic
W700,Environmental & Regulatory,Waste management,Environmental,Transport Related Expenditure,Direct Transport Costs,Repair Materials,06/09/2018,249292,767.89,Dennis Eagle Ltd
L382,Cultural & Related,Culture & Heritage,Community and Leisure ,Supplies & Services,Miscellaneous Expenses,Booking Of Acts,27/09/2018,251986,940,Never42 Ltd
F001,Central Services to the Public,Management & Support Services,Finance,Supplies & Services,"Printing, Stationery & General Office Expenses",Postage Costs,06/09/2018,249866,787.22,Whistl Uk Ltd
C110,Central Services to the Public,Management & Support Services,Chief Executive's,Supplies & Services,"Printing, Stationery & General Office Expenses",Photocopying Costs,06/09/2018,249530,793.57,Ricoh Uk Ltd
R850,Central Services to the Public,Local Tax Collection,Revenues,Supplies & Services,Communications & Computing,Computer Software,12/09/2018,250651,400,Airey Consultancy Services Ltd
R931,Housing Services,Housing Benefits ,Revenues,Supplies & Services,Communications & Computing,Computer Software,12/09/2018,250651,200,Airey Consultancy Services Ltd
R933,Central Services to the Public,Local Tax Collection,Revenues,Supplies & Services,Communications & Computing,Computer Software,12/09/2018,250651,200,Airey Consultancy Services Ltd
W100,Cultural & Related,Open Spaces,Environmental,Transport Related Expenditure,Direct Transport Costs,Repair Materials,13/09/2018,250591,280,Md Services (Andover) Ltd
W100,Cultural & Related,Open Spaces,Environmental,Supplies & Services,"Equipment, Furniture & Materials",Purchase Equip + Materials,06/09/2018,250187,800,Smrs Fabrication & Welding Ltd
W600,Environmental & Regulatory,Street Cleansing (not chargeable to Highways),Environmental,Transport Related Expenditure,Direct Transport Costs,Repair Materials,13/09/2018,250591,280,Md Services (Andover) Ltd
W700,Environmental & Regulatory,Waste management,Environmental,Transport Related Expenditure,Direct Transport Costs,Repair Materials,13/09/2018,250591,240,Md Services (Andover) Ltd
W100,Cultural & Related,Open Spaces,Environmental,Supplies & Services,"Equipment, Furniture & Materials",Purchase Equip + Materials,06/09/2018,249795,813.39,Groundsman Tools & Supplies Llp
P110,Planning & Development,Development Control,Planning & Building,Supplies & Services,Services,Project Consultancy - Policy,06/09/2018,250005,825,Reading Agricultural Consultants Ltd
W700,Environmental & Regulatory,Waste management,Environmental,Transport Related Expenditure,Direct Transport Costs,Repair Materials,20/09/2018,251322,825.51,Dennis Eagle Ltd
F001,Central Services to the Public,Management & Support Services,Finance,Supplies & Services,"Printing, Stationery & General Office Expenses",Postage Costs,27/09/2018,251747,828.67,Whistl Uk Ltd
H310,Housing Services,Homelessness,Housing and Environmental Health ,Supplies & Services,Grants & Subscriptions,Grants,20/09/2018,250235,1000,Cardea Ltd
L451,Planning & Development,Community Development,Community and Leisure ,Supplies & Services,Grants & Subscriptions,Grants,19/09/2018,251484,1000,Andover Trees United
L451,Planning & Development,Community Development,Community and Leisure ,Supplies & Services,Grants & Subscriptions,Grants,19/09/2018,251485,1000,Army Welfare Service
L381,Cultural & Related,Culture & Heritage,Community and Leisure ,Supplies & Services,"Equipment, Furniture & Materials",Purchase Equip + Materials,13/09/2018,250668,852,Options Flooring Ltd
E541,Environmental & Regulatory,Regulatory Services,Estates and Economic Development ,Premises related Expenditure,Water Services,Water And Sewerage Charges,20/09/2018,250926,1032.65,Business Stream
W701,Environmental & Regulatory,Waste management,Environmental,Transport Related Expenditure,Direct Transport Costs,Repair Materials,06/09/2018,250228,872.79,Terberg Matec Uk Limited
E601,Central Services to the Public,Management & Support Services,Estates and Economic Development ,Third Party Payments,Other Establishments,Private Contractors,13/09/2018,251014,892,Alarms & Electrical (Devizes) Ltd
T700,"Highways, Roads & Transport",Public Transport,Plan Pol & Transport,Third Party Payments,Transport Operators in Respect of Concessionary Fares,Voluntary Orgs Reimbursement,06/09/2018,250392,1092.5,Romsey Good Neighbours
L139,Cultural & Related,Recreation & Sport,Community and Leisure ,Premises related Expenditure,Grounds Maintenance Costs,Gm - Additional Works,13/09/2018,250188,918.8,Smrs Fabrication & Welding Ltd
W600,Environmental & Regulatory,Street Cleansing (not chargeable to Highways),Environmental,Supplies & Services,"Equipment, Furniture & Materials",Purchase Equip + Materials,13/09/2018,250267,920,Sweeperhire
L381,Cultural & Related,Culture & Heritage,Community and Leisure ,Supplies & Services,"Equipment, Furniture & Materials",Purchase Equip + Materials,20/09/2018,251329,922,Wake'S Decorating Ltd
T600,"Highways, Roads & Transport",Parking Services,Plan Pol & Transport,Supplies & Services,"Clothes, Uniforms & Laundry",Clothing + Uniforms,06/09/2018,247266,924.1,Keltic
W600,Environmental & Regulatory,Street Cleansing (not chargeable to Highways),Environmental,Transport Related Expenditure,Direct Transport Costs,Repair Materials,13/09/2018,251032,932.5,Johnston Sweepers Ltd
E203,External Trading Accounts,Business Parks,Estates and Economic Development ,Supplies & Services,Miscellaneous Expenses,Waste Collection,06/09/2018,250373,947.25,Basingstoke Skip Hire & Sthrn Waste Mgt Ltd
E532,Central Services to the Public,Management & Support Services,Estates and Economic Development ,Premises related Expenditure,Repairs Alterations & Maintenance of Buildings,Building Maint - Non Estates,27/09/2018,252076,950,Solent Fire Protection Services Ltd
E102,Central Services to the Public,Management & Support Services,Estates and Economic Development ,Employees,Indirect Employee Expenses,Agency Staff - Waged Posts,27/09/2018,250657,957,Matchtech Group Uk Ltd
L222,Cultural & Related,Open Spaces,Community and Leisure ,Premises related Expenditure,Grounds Maintenance Costs,Gm - Additional Works,20/09/2018,251019,975,Purbeck Civil Engineering Limited
W825,Central Services to the Public,Management & Support Services,Environmental,Transport Related Expenditure,Direct Transport Costs,Red Derv,06/09/2018,249876,1117.56,Wp Group Limited
R852,Central Services to the Public,Local Tax Collection,Revenues,Supplies & Services,Services,Professional Fees,13/09/2018,250011,75,Ross & Roberts
E517,Cultural & Related,Culture & Heritage,Estates and Economic Development ,Premises related Expenditure,Repairs Alterations & Maintenance of Buildings,Estates premises costs - AMP,27/09/2018,251993,995.7,Andover Glass Works Ltd
W700,Environmental & Regulatory,Waste management,Environmental,Employees,Indirect Employee Expenses,Agency Staff - Waged Posts,06/09/2018,249783,1011.41,Simple Recruitment Services Ltd
W100,Cultural & Related,Open Spaces,Environmental,Third Party Payments,Other Establishments,Private Contractors,06/09/2018,250339,1221.86,I Gibson Agricultural Contractor
W700,Environmental & Regulatory,Waste management,Environmental,Supplies & Services,"Printing, Stationery & General Office Expenses",External Printing,06/09/2018,248789,1033.7,Dura-Id Solutions Ltd
E156,Planning & Development,Economic Development,Estates and Economic Development ,Supplies & Services,Grants & Subscriptions,Grants,13/09/2018,250625,1250,G T Marketing & Pr
T110,Planning & Development,Planning Policy,Plan Pol & Transport,Supplies & Services,Services,Project Consultancy - Policy,27/09/2018,251466,1050,Bluestone Planning
P110,Planning & Development,Development Control,Planning & Building,Employees,Indirect Employee Expenses,Temporary Staff,13/09/2018,250612,1051.68,Oyster Partnership
E532,Central Services to the Public,Management & Support Services,Estates and Economic Development ,Premises related Expenditure,Repairs Alterations & Maintenance of Buildings,Building Maint - Non Estates,27/09/2018,251981,1072.27,Btu Installation & Maintenance Ltd
W600,Environmental & Regulatory,Street Cleansing (not chargeable to Highways),Environmental,Transport Related Expenditure,Direct Transport Costs,Repair Materials,13/09/2018,250590,64.61,Md Services (Andover) Ltd
W800,Central Services to the Public,Management & Support Services,Environmental,Transport Related Expenditure,Direct Transport Costs,Workshop Consumables,13/09/2018,250590,279.61,Md Services (Andover) Ltd
W800,Central Services to the Public,Management & Support Services,Environmental,Transport Related Expenditure,Direct Transport Costs,Repair Materials,13/09/2018,250590,690.76,Md Services (Andover) Ltd
W800,Central Services to the Public,Management & Support Services,Environmental,Supplies & Services,"Equipment, Furniture & Materials",Purchase Tools,13/09/2018,250590,41.28,Md Services (Andover) Ltd
W700,Environmental & Regulatory,Waste management,Environmental,Transport Related Expenditure,Direct Transport Costs,Repair Materials,27/09/2018,251762,1078.5,Dennis Eagle Ltd
E532,Central Services to the Public,Management & Support Services,Estates and Economic Development ,Premises related Expenditure,Cleaning and domestic supplies,Window Cleaning,13/09/2018,250638,1082,Allclean Windows Limited
W700,Environmental & Regulatory,Waste management,Environmental,Employees,Indirect Employee Expenses,Agency Staff - Waged Posts,06/09/2018,249521,1104.94,Simple Recruitment Services Ltd
I405,Central Services to the Public,Management & Support Services,IT,Supplies & Services,"Equipment, Furniture & Materials",IT Supp and Serv AMP,27/09/2018,250664,1121.5,Tet Ltd
L139,Cultural & Related,Recreation & Sport,Community and Leisure ,Premises related Expenditure,Grounds Maintenance Costs,Gm - Additional Works,27/09/2018,251994,1150,Purbeck Civil Engineering Limited
W700,Environmental & Regulatory,Waste management,Environmental,Transport Related Expenditure,Direct Transport Costs,Repair Materials,06/09/2018,249842,748.6,Dennis Eagle Ltd
W701,Environmental & Regulatory,Waste management,Environmental,Transport Related Expenditure,Direct Transport Costs,Repair Materials,06/09/2018,249842,414.68,Dennis Eagle Ltd
E102,Central Services to the Public,Management & Support Services,Estates and Economic Development ,Employees,Indirect Employee Expenses,Agency Staff - Waged Posts,06/09/2018,249539,1221,Matchtech Group Uk Ltd
E102,Central Services to the Public,Management & Support Services,Estates and Economic Development ,Employees,Indirect Employee Expenses,Agency Staff - Waged Posts,27/09/2018,250246,1221,Matchtech Group Uk Ltd
E102,Central Services to the Public,Management & Support Services,Estates and Economic Development ,Employees,Indirect Employee Expenses,Agency Staff - Waged Posts,27/09/2018,251568,1221,Matchtech Group Uk Ltd
E532,Central Services to the Public,Management & Support Services,Estates and Economic Development ,Premises related Expenditure,Repairs Alterations & Maintenance of Buildings,Building Maint - Non Estates,06/09/2018,250369,1232.71,Temple Lifts Ltd
W100,Cultural & Related,Open Spaces,Environmental,Supplies & Services,"Equipment, Furniture & Materials",Purchase Equip + Materials,06/09/2018,249252,1238,Nomix Enviro
B221,Central Services to the Public,Elections,Legal & Democratic,Supplies & Services,"Printing, Stationery & General Office Expenses",Postage Costs,13/09/2018,250939,1244.25,Royal Mail Group Ltd
E517,Cultural & Related,Culture & Heritage,Estates and Economic Development ,Premises related Expenditure,Repairs Alterations & Maintenance of Buildings,Building Maint - Non Estates,27/09/2018,251748,1250,Real Estate Strategies Ltd
E323,Cultural & Related,Tourism,Estates and Economic Development ,Premises related Expenditure,Repairs Alterations & Maintenance of Buildings,Planned Maintenance - Non Est,13/09/2018,250629,19.5,Temple Lifts Ltd
E511,Cultural & Related,Culture & Heritage,Estates and Economic Development ,Premises related Expenditure,Repairs Alterations & Maintenance of Buildings,Planned Maintenance - Non Est,13/09/2018,250629,201.5,Temple Lifts Ltd
E512,Cultural & Related,Culture & Heritage,Estates and Economic Development ,Premises related Expenditure,Repairs Alterations & Maintenance of Buildings,Planned Maintenance - Non Est,13/09/2018,250629,19.5,Temple Lifts Ltd
E532,Central Services to the Public,Management & Support Services,Estates and Economic Development ,Premises related Expenditure,Repairs Alterations & Maintenance of Buildings,Planned Maintenance - Non Est,13/09/2018,250629,806,Temple Lifts Ltd
L131,Cultural & Related,Recreation & Sport,Community and Leisure ,Premises related Expenditure,Repairs Alterations & Maintenance of Buildings,Planned Maintenance - Non Est,13/09/2018,250629,201.5,Temple Lifts Ltd
L331,Cultural & Related,Culture & Heritage,Community and Leisure ,Premises related Expenditure,Repairs Alterations & Maintenance of Buildings,Planned Maintenance - Non Est,13/09/2018,250629,49.42,Temple Lifts Ltd
R850,Central Services to the Public,Local Tax Collection,Revenues,Supplies & Services,Services,Professional Fees,06/09/2018,250340,1300,Inform Cpi Ltd
T300,"Highways, Roads & Transport",Highways and roads - maintenance,Plan Pol & Transport,Premises related Expenditure,Repairs Alterations & Maintenance of Buildings,Highways Repairs,20/09/2018,249787,1305.72,Signway Supplies (Datchet Ltd)
P110,Planning & Development,Development Control,Planning & Building,Employees,Indirect Employee Expenses,Temporary Staff,26/09/2018,251858,1591.5,Personal Data - Data Protection Act 1998
R852,Central Services to the Public,Local Tax Collection,Revenues,Supplies & Services,Miscellaneous Expenses,All Pay Fees,13/09/2018,250909,1332.06,Allpay Limited
B101,Central Services to the Public,Management & Support Services,Legal & Democratic,Employees,Indirect Employee Expenses,Temporary Staff,20/09/2018,250596,1333.04,Venn Group
B101,Central Services to the Public,Management & Support Services,Legal & Democratic,Employees,Indirect Employee Expenses,Temporary Staff,06/09/2018,249782,1339.5,Venn Group
E601,Central Services to the Public,Management & Support Services,Estates and Economic Development ,Third Party Payments,Other Establishments,Private Contractors,13/09/2018,251013,1349.4,Alarms & Electrical (Devizes) Ltd
E102,Central Services to the Public,Management & Support Services,Estates and Economic Development ,Employees,Indirect Employee Expenses,Agency Staff - Waged Posts,27/09/2018,250658,1350,Matchtech Group Uk Ltd
E532,Central Services to the Public,Management & Support Services,Estates and Economic Development ,Premises related Expenditure,Water Services,Water And Sewerage Charges,06/09/2018,250250,1620.76,Business Stream
B101,Central Services to the Public,Management & Support Services,Legal & Democratic,Employees,Indirect Employee Expenses,Temporary Staff,06/09/2018,249877,1358.5,Venn Group
H260,Environmental & Regulatory,Regulatory Services,Housing and Environmental Health ,Supplies & Services,"Equipment, Furniture & Materials",Purchase Equip + Materials,06/09/2018,248210,1371.68,Killgerm Chemicals Ltd
L382,Cultural & Related,Culture & Heritage,Community and Leisure ,Supplies & Services,Miscellaneous Expenses,Booking Of Acts,27/09/2018,251735,1663.34,Terry Dash Music
R933,Central Services to the Public,Local Tax Collection,Revenues,Supplies & Services,Services,Professional Fees,05/09/2018,249779,1406.25,Airey Consultancy Services Ltd
W700,Environmental & Regulatory,Waste management,Environmental,Transport Related Expenditure,Direct Transport Costs,Repair Materials,06/09/2018,250050,1442.13,Dennis Eagle Ltd
F001,Central Services to the Public,Management & Support Services,Finance,Supplies & Services,"Printing, Stationery & General Office Expenses",Postage Costs,20/09/2018,251024,1464.83,Whistl Uk Ltd
L222,Cultural & Related,Open Spaces,Community and Leisure ,Premises related Expenditure,Grounds Maintenance Costs,Gm - Additional Works,27/09/2018,251750,1470,Kingcombe Aquacare Ltd
L382,Cultural & Related,Culture & Heritage,Community and Leisure ,Supplies & Services,Miscellaneous Expenses,Booking Of Acts,13/09/2018,250886,1471.75,Zoots The Bankd
E203,External Trading Accounts,Business Parks,Estates and Economic Development ,Premises related Expenditure,Repairs Alterations & Maintenance of Buildings,Planned Maintenance - Non Est,27/09/2018,251743,57.71,Healthy Buildings International
E221,External Trading Accounts,Business Parks,Estates and Economic Development ,Premises related Expenditure,Repairs Alterations & Maintenance of Buildings,Planned Maintenance - Non Est,27/09/2018,251743,173.12,Healthy Buildings International
E323,Cultural & Related,Tourism,Estates and Economic Development ,Premises related Expenditure,Repairs Alterations & Maintenance of Buildings,Planned Maintenance - Non Est,27/09/2018,251743,57.7,Healthy Buildings International
E511,Cultural & Related,Culture & Heritage,Estates and Economic Development ,Premises related Expenditure,Repairs Alterations & Maintenance of Buildings,Planned Maintenance - Non Est,27/09/2018,251743,57.7,Healthy Buildings International
E512,Cultural & Related,Culture & Heritage,Estates and Economic Development ,Premises related Expenditure,Repairs Alterations & Maintenance of Buildings,Planned Maintenance - Non Est,27/09/2018,251743,57.71,Healthy Buildings International
E514,Cultural & Related,Culture & Heritage,Estates and Economic Development ,Premises related Expenditure,Repairs Alterations & Maintenance of Buildings,Planned Maintenance - Non Est,27/09/2018,251743,57.71,Healthy Buildings International
E515,Cultural & Related,Culture & Heritage,Estates and Economic Development ,Premises related Expenditure,Repairs Alterations & Maintenance of Buildings,Planned Maintenance - Non Est,27/09/2018,251743,57.71,Healthy Buildings International
E516,Cultural & Related,Culture & Heritage,Estates and Economic Development ,Premises related Expenditure,Repairs Alterations & Maintenance of Buildings,Planned Maintenance - Non Est,27/09/2018,251743,57.71,Healthy Buildings International
E532,Central Services to the Public,Management & Support Services,Estates and Economic Development ,Premises related Expenditure,Repairs Alterations & Maintenance of Buildings,Planned Maintenance - Non Est,27/09/2018,251743,57.7,Healthy Buildings International
E534,Central Services to the Public,Management & Support Services,Estates and Economic Development ,Premises related Expenditure,Repairs Alterations & Maintenance of Buildings,Planned Maintenance - Non Est,27/09/2018,251743,57.71,Healthy Buildings International
E536,Central Services to the Public,Management & Support Services,Estates and Economic Development ,Premises related Expenditure,Repairs Alterations & Maintenance of Buildings,Planned Maintenance - Non Est,27/09/2018,251743,57.7,Healthy Buildings International
E537,Central Services to the Public,Management & Support Services,Estates and Economic Development ,Premises related Expenditure,Repairs Alterations & Maintenance of Buildings,Planned Maintenance - Non Est,27/09/2018,251743,57.71,Healthy Buildings International
E541,Environmental & Regulatory,Regulatory Services,Estates and Economic Development ,Premises related Expenditure,Repairs Alterations & Maintenance of Buildings,Planned Maintenance - Non Est,27/09/2018,251743,115.42,Healthy Buildings International
L131,Cultural & Related,Recreation & Sport,Community and Leisure ,Premises related Expenditure,Repairs Alterations & Maintenance of Buildings,Planned Maintenance - Non Est,27/09/2018,251743,57.71,Healthy Buildings International
L132,Cultural & Related,Recreation & Sport,Community and Leisure ,Premises related Expenditure,Repairs Alterations & Maintenance of Buildings,Planned Maintenance - Non Est,27/09/2018,251743,57.71,Healthy Buildings International
L134,Cultural & Related,Recreation & Sport,Community and Leisure ,Premises related Expenditure,Repairs Alterations & Maintenance of Buildings,Planned Maintenance - Non Est,27/09/2018,251743,57.71,Healthy Buildings International
L135,Cultural & Related,Recreation & Sport,Community and Leisure ,Premises related Expenditure,Repairs Alterations & Maintenance of Buildings,Planned Maintenance - Non Est,27/09/2018,251743,57.71,Healthy Buildings International
L136,Cultural & Related,Recreation & Sport,Community and Leisure ,Premises related Expenditure,Repairs Alterations & Maintenance of Buildings,Planned Maintenance - Non Est,27/09/2018,251743,57.71,Healthy Buildings International
L137,Cultural & Related,Recreation & Sport,Community and Leisure ,Premises related Expenditure,Repairs Alterations & Maintenance of Buildings,Planned Maintenance - Non Est,27/09/2018,251743,57.71,Healthy Buildings International
L138,Cultural & Related,Recreation & Sport,Community and Leisure ,Premises related Expenditure,Repairs Alterations & Maintenance of Buildings,Planned Maintenance - Non Est,27/09/2018,251743,57.71,Healthy Buildings International
L232,Environmental & Regulatory,"Cemetery, Cremation and Mortuary Services",Community and Leisure ,Premises related Expenditure,Repairs Alterations & Maintenance of Buildings,Planned Maintenance - Non Est,27/09/2018,251743,57.71,Healthy Buildings International
L234,Environmental & Regulatory,"Cemetery, Cremation and Mortuary Services",Community and Leisure ,Premises related Expenditure,Repairs Alterations & Maintenance of Buildings,Planned Maintenance - Non Est,27/09/2018,251743,57.71,Healthy Buildings International
L244,Cultural & Related,Open Spaces,Community and Leisure ,Premises related Expenditure,Repairs Alterations & Maintenance of Buildings,Planned Maintenance - Non Est,27/09/2018,251743,57.71,Healthy Buildings International
L381,Cultural & Related,Culture & Heritage,Community and Leisure ,Premises related Expenditure,Repairs Alterations & Maintenance of Buildings,Planned Maintenance - Non Est,27/09/2018,251743,57.71,Healthy Buildings International
T610,"Highways, Roads & Transport",Parking Services,Plan Pol & Transport,Premises related Expenditure,Repairs Alterations & Maintenance of Buildings,Planned Maintenance - Non Est,27/09/2018,251743,57.71,Healthy Buildings International
L139,Cultural & Related,Recreation & Sport,Community and Leisure ,Premises related Expenditure,Grounds Maintenance Costs,Gm - Additional Works,06/09/2018,250194,1624,Places For People Leisure Ltd - Developments
2721,Central Services to the Public,Management & Support Services,IT,Support Services,IT,IT Hardware costs,27/09/2018,251765,1662,Uninterruptible Power Supplies Ltd
E102,Central Services to the Public,Management & Support Services,Estates and Economic Development ,Employees,Indirect Employee Expenses,Agency Staff - Waged Posts,27/09/2018,250247,1665,Matchtech Group Uk Ltd
1652,Environmental & Regulatory,Regulatory Services,Housing and Environmental Health ,Supplies & Services,Grants and subscriptions,Capital Grants,27/09/2018,252112,2000,Personal Data - Data Protection Act 1998
L451,Planning & Development,Community Development,Community and Leisure ,Supplies & Services,Grants & Subscriptions,Grants,27/09/2018,252111,2000,Andover Town Council
T600,"Highways, Roads & Transport",Parking Services,Plan Pol & Transport,Supplies & Services,"Clothes, Uniforms & Laundry",Clothing + Uniforms,06/09/2018,246260,1678.1,Keltic
W701,Environmental & Regulatory,Waste management,Environmental,Transport Related Expenditure,Contract Hire and Operating Leases,Vehicles-Hired\Leased,06/09/2018,249802,1690,Trash Uk Limited
P210,Planning & Development,Building Control,Planning & Building,Employees,Indirect Employee Expenses,Temporary Staff,13/09/2018,250039,1695,Brg Interim Solutions Ltd
1651,Environmental & Regulatory,Regulatory Services,Housing and Environmental Health ,Supplies & Services,Grants and subscriptions,Capital Grants,20/09/2018,251577,2038.62,P M Plumbing & Carpentry
R852,Central Services to the Public,Local Tax Collection,Revenues,Supplies & Services,Communications & Computing,Computer Software,13/09/2018,250047,1700,Northgate Public Services Uk Ltd
H250,Environmental & Regulatory,Regulatory Services,Housing and Environmental Health ,Supplies & Services,Miscellaneous Expenses,Other Miscellaneous Costs,06/09/2018,248967,1707.48,Newbury Lodge Kennels
W800,Central Services to the Public,Management & Support Services,Environmental,Transport Related Expenditure,Direct Transport Costs,Repair Materials,06/09/2018,249447,1720.92,Dennis Eagle Ltd
E534,Central Services to the Public,Management & Support Services,Estates and Economic Development ,Premises related Expenditure,Water Services,Water And Sewerage Charges,20/09/2018,250252,2070.01,Business Stream
E102,Central Services to the Public,Management & Support Services,Estates and Economic Development ,Employees,Indirect Employee Expenses,Agency Staff - Waged Posts,06/09/2018,249524,1755,Matchtech Group Uk Ltd
E102,Central Services to the Public,Management & Support Services,Estates and Economic Development ,Employees,Indirect Employee Expenses,Agency Staff - Waged Posts,27/09/2018,251566,1755,Matchtech Group Uk Ltd
L381,Cultural & Related,Culture & Heritage,Community and Leisure ,Premises related Expenditure,Energy Costs,Electricity,27/09/2018,251842,1598.94,Sparsholt College Hampshire
L381,Cultural & Related,Culture & Heritage,Community and Leisure ,Premises related Expenditure,Energy Costs,Gas,27/09/2018,251842,11.55,Sparsholt College Hampshire
L381,Cultural & Related,Culture & Heritage,Community and Leisure ,Premises related Expenditure,Water Services,Water And Sewerage Charges,27/09/2018,251842,254.34,Sparsholt College Hampshire
E532,Central Services to the Public,Management & Support Services,Estates and Economic Development ,Third Party Payments,Other Establishments,Contract Catering,27/09/2018,251340,1846,Edwards And Ward Ltd
L382,Cultural & Related,Culture & Heritage,Community and Leisure ,Supplies & Services,Miscellaneous Expenses,Booking Of Acts,13/09/2018,250874,1867.34,Talon Music Ltd
T700,"Highways, Roads & Transport",Public Transport,Plan Pol & Transport,Third Party Payments,Transport Operators in Respect of Concessionary Fares,Voluntary Orgs Reimbursement,27/09/2018,251853,2268,Andover Neighbourcare
L243,Cultural & Related,Open Spaces,Community and Leisure ,Supplies & Services,"Equipment, Furniture & Materials",Purchase Equip + Materials,27/09/2018,246189,2280,Village Sensation
P210,Planning & Development,Building Control,Planning & Building,Employees,Indirect Employee Expenses,Temporary Staff,13/09/2018,250037,1935,Brg Interim Solutions Ltd
W700,Environmental & Regulatory,Waste management,Environmental,Employees,Indirect Employee Expenses,Agency Staff - Waged Posts,06/09/2018,250341,1496.16,Golden Orb Solutions
W701,Environmental & Regulatory,Waste management,Environmental,Employees,Indirect Employee Expenses,Agency Staff - Waged Posts,06/09/2018,250341,493.68,Golden Orb Solutions
P210,Planning & Development,Building Control,Planning & Building,Employees,Indirect Employee Expenses,Temporary Staff,13/09/2018,250038,1995,Brg Interim Solutions Ltd
W700,Environmental & Regulatory,Waste management,Environmental,Transport Related Expenditure,Direct Transport Costs,Repair Materials,06/09/2018,249296,2058.76,Dennis Eagle Ltd
I404,Central Services to the Public,Management & Support Services,IT,Supplies & Services,Communications & Computing,Computer Software,06/09/2018,250375,2085,Voodoo Technology Ltd
W100,Cultural & Related,Open Spaces,Environmental,Supplies & Services,"Equipment, Furniture & Materials",Purchase Equip + Materials,27/09/2018,251040,2088,Rigby Taylor Ltd
R852,Central Services to the Public,Local Tax Collection,Revenues,Supplies & Services,Communications & Computing,Computer Software,13/09/2018,247274,2091.61,Northgate Public Services Uk Ltd
L112,Cultural & Related,Recreation & Sport,Community and Leisure ,Supplies & Services,Services,Professional Fees,06/09/2018,250368,2100,Watts Group Ltd
E102,Central Services to the Public,Management & Support Services,Estates and Economic Development ,Supplies & Services,Services,Professional Fees,27/09/2018,252080,2183.58,Milestone Transport Planning Ltd
1651,Environmental & Regulatory,Regulatory Services,Housing and Environmental Health ,Supplies & Services,Grants and subscriptions,Capital Grants,20/09/2018,251574,2792.53,Liftech Systems (Se) Ltd
L381,Cultural & Related,Culture & Heritage,Community and Leisure ,Supplies & Services,"Printing, Stationery & General Office Expenses",Licences / Affiliation Fees,13/09/2018,250589,2364.27,Ppl Prs Ltd
W700,Environmental & Regulatory,Waste management,Environmental,Employees,Indirect Employee Expenses,Agency Staff - Waged Posts,13/09/2018,250586,1288.08,Golden Orb Solutions
W701,Environmental & Regulatory,Waste management,Environmental,Employees,Indirect Employee Expenses,Agency Staff - Waged Posts,13/09/2018,250586,1082.4,Golden Orb Solutions
L382,Cultural & Related,Culture & Heritage,Community and Leisure ,Supplies & Services,Miscellaneous Expenses,Booking Of Acts,06/09/2018,249807,2410,Off The Kerb Productions
B101,Central Services to the Public,Management & Support Services,Legal & Democratic,Supplies & Services,"Printing, Stationery & General Office Expenses",Licences / Affiliation Fees,20/09/2018,251592,2493.94,Iken Business Ltd
1651,Environmental & Regulatory,Regulatory Services,Housing and Environmental Health ,Supplies & Services,Grants and subscriptions,Capital Grants,27/09/2018,252113,3000,Personal Data - Data Protection Act 1998
E213,External Trading Accounts,Economic Development,Estates and Economic Development ,Premises related Expenditure,Repairs Alterations & Maintenance of Buildings,Building Maint - Non Estates,27/09/2018,251851,2500,The Genesis Design Studio Ltd
W700,Environmental & Regulatory,Waste management,Environmental,Employees,Indirect Employee Expenses,Agency Staff - Waged Posts,20/09/2018,251456,2088.79,Golden Orb Solutions
W701,Environmental & Regulatory,Waste management,Environmental,Employees,Indirect Employee Expenses,Agency Staff - Waged Posts,20/09/2018,251456,421.88,Golden Orb Solutions
E221,External Trading Accounts,Business Parks,Estates and Economic Development ,Premises related Expenditure,Repairs Alterations & Maintenance of Buildings,Building Maint - Non Estates,20/09/2018,251588,2525.85,Spear Electrical Limited
W700,Environmental & Regulatory,Waste management,Environmental,Employees,Indirect Employee Expenses,Agency Staff - Waged Posts,20/09/2018,251457,2336.17,Golden Orb Solutions
W701,Environmental & Regulatory,Waste management,Environmental,Employees,Indirect Employee Expenses,Agency Staff - Waged Posts,20/09/2018,251457,460.57,Golden Orb Solutions
T110,Planning & Development,Planning Policy,Plan Pol & Transport,Supplies & Services,Services,Professional Advice,20/09/2018,248267,2825,Nexus Planning Ltd
1651,Environmental & Regulatory,Regulatory Services,Housing and Environmental Health ,Supplies & Services,Grants and subscriptions,Capital Grants,27/09/2018,252096,3423.01,S & J Building Services (Uk) Ltd
W700,Environmental & Regulatory,Waste management,Environmental,Employees,Indirect Employee Expenses,Agency Staff - Waged Posts,06/09/2018,250342,2058.32,Golden Orb Solutions
W701,Environmental & Regulatory,Waste management,Environmental,Employees,Indirect Employee Expenses,Agency Staff - Waged Posts,06/09/2018,250342,856.38,Golden Orb Solutions
1651,Environmental & Regulatory,Regulatory Services,Housing and Environmental Health ,Supplies & Services,Grants and subscriptions,Capital Grants,27/09/2018,252110,3549.2,Prism Medical Uk
I404,Central Services to the Public,Management & Support Services,IT,Supplies & Services,Services,Project Consultancy - Systems,06/09/2018,249272,3000,Phoenix Software Ltd
1651,Environmental & Regulatory,Regulatory Services,Housing and Environmental Health ,Supplies & Services,Grants and subscriptions,Capital Grants,20/09/2018,251573,3641.02,Lifestyle Solutions
I304,Central Services to the Public,Management & Support Services,IT,Supplies & Services,Services,Project Consultancy - Systems,06/09/2018,249026,3125,Idox Software Ltd
B221,Central Services to the Public,Elections,Legal & Democratic,Supplies & Services,"Printing, Stationery & General Office Expenses",Postage Costs,13/09/2018,249531,3143.35,Royal Mail Group Ltd
W821,Central Services to the Public,Management & Support Services,Environmental,Transport Related Expenditure,Direct Transport Costs,Diesel,20/09/2018,251319,3223.87,Wp Group Limited
2721,Central Services to the Public,Management & Support Services,IT,Support Services,IT,IT Hardware costs,27/09/2018,251764,3337,Uninterruptible Power Supplies Ltd
1436,External Trading Accounts,Property Investments,Estates and Economic Development ,Third Party Payments,Private contractors,Secondary contract - est,27/09/2018,252098,3579.55,Dentons Ukmea Llp
H200,Environmental & Regulatory,Regulatory Services,Housing and Environmental Health ,Employees,Indirect Employee Expenses,Temporary Staff,06/09/2018,250020,3719.61,Danbro Workforce Solutions Ltd
W700,Environmental & Regulatory,Waste management,Environmental,Transport Related Expenditure,Direct Transport Costs,Repair Materials,13/09/2018,250353,3757.48,Dennis Eagle Ltd
I304,Central Services to the Public,Management & Support Services,IT,Supplies & Services,Communications & Computing,Computer Hardware,27/09/2018,251755,3871.54,Nouveau Solutions Ltd
1651,Environmental & Regulatory,Regulatory Services,Housing and Environmental Health ,Supplies & Services,Grants and subscriptions,Capital Grants,27/09/2018,252097,4658.16,Lifestyle Solutions
1651,Environmental & Regulatory,Regulatory Services,Housing and Environmental Health ,Supplies & Services,Grants and subscriptions,Capital Grants,20/09/2018,251572,4775,Bentley Mobility Services
C110,Central Services to the Public,Management & Support Services,Chief Executive's,Supplies & Services,Services,Training Courses,13/09/2018,250601,4009.63,Kba Solutions Ltd
W821,Central Services to the Public,Management & Support Services,Environmental,Transport Related Expenditure,Direct Transport Costs,Diesel,06/09/2018,249442,4034.48,Wp Group Limited
F179,Central Services to the Public,Management & Support Services,Finance,Transport Related Expenditure,Contract Hire and Operating Leases,Officer lease cars,27/09/2018,251997,4919.58,Lex Autolease Ltd
R850,Central Services to the Public,Local Tax Collection,Revenues,Supplies & Services,Services,Professional Fees,27/09/2018,251563,4200,Inform Cpi Ltd
W821,Central Services to the Public,Management & Support Services,Environmental,Transport Related Expenditure,Direct Transport Costs,Diesel,06/09/2018,250219,4248.8,Wp Group Limited
L243,Cultural & Related,Open Spaces,Community and Leisure ,Premises related Expenditure,Repairs Alterations & Maintenance of Buildings,Estates premises costs - AMP,27/09/2018,251995,4250,Purbeck Civil Engineering Limited
C151,Central Services to the Public,Management & Support Services,Revenues,Supplies & Services,Miscellaneous Expenses,Security Services,06/09/2018,250275,313.95,Jade Security Services Ltd
T610,"Highways, Roads & Transport",Parking Services,Plan Pol & Transport,Supplies & Services,Services,Professional Fees,06/09/2018,250275,4338.35,Jade Security Services Ltd
C110,Central Services to the Public,Management & Support Services,Chief Executive's,Transport Related Expenditure,Contract Hire and Operating Leases,Officer lease cars,06/09/2018,250227,5628.38,Inchcape Fleet Solutions Ltd
E515,Cultural & Related,Culture & Heritage,Estates and Economic Development ,Premises related Expenditure,Grounds Maintenance Costs,Grounds Maintenance Contracts,13/09/2018,250338,47.59,J & A Marking Ltd
L138,Cultural & Related,Recreation & Sport,Community and Leisure ,Premises related Expenditure,Grounds Maintenance Costs,Gm - Additional Works,13/09/2018,250338,543.3,J & A Marking Ltd
T610,"Highways, Roads & Transport",Parking Services,Plan Pol & Transport,Premises related Expenditure,Repairs Alterations & Maintenance of Buildings,Car Park General Repairs,13/09/2018,250338,4108.08,J & A Marking Ltd
C151,Central Services to the Public,Management & Support Services,Revenues,Supplies & Services,Miscellaneous Expenses,Security Services,20/09/2018,250665,313.95,Jade Security Services Ltd
T610,"Highways, Roads & Transport",Parking Services,Plan Pol & Transport,Supplies & Services,Services,Professional Fees,20/09/2018,250665,4397.89,Jade Security Services Ltd
E221,External Trading Accounts,Business Parks,Estates and Economic Development ,Premises related Expenditure,Cleaning and domestic supplies,Contract Cleaning - Non Estates,13/09/2018,250626,207.01,Hi-Spec Facilities Services Plc
E513,Cultural & Related,Culture & Heritage,Estates and Economic Development ,Premises related Expenditure,Cleaning and domestic supplies,Contract Cleaning - Non Estates,13/09/2018,250626,414.02,Hi-Spec Facilities Services Plc
E532,Central Services to the Public,Management & Support Services,Estates and Economic Development ,Premises related Expenditure,Cleaning and domestic supplies,Contract Cleaning - Non Estates,13/09/2018,250626,172.51,Hi-Spec Facilities Services Plc
E541,Environmental & Regulatory,Regulatory Services,Estates and Economic Development ,Premises related Expenditure,Cleaning and domestic supplies,Contract Cleaning - Non Estates,13/09/2018,250626,1932.11,Hi-Spec Facilities Services Plc
L134,Cultural & Related,Recreation & Sport,Community and Leisure ,Premises related Expenditure,Cleaning and domestic supplies,Contract Cleaning - Non Estates,13/09/2018,250626,724.54,Hi-Spec Facilities Services Plc
L137,Cultural & Related,Recreation & Sport,Community and Leisure ,Premises related Expenditure,Cleaning and domestic supplies,Contract Cleaning - Non Estates,13/09/2018,250626,414.02,Hi-Spec Facilities Services Plc
L138,Cultural & Related,Recreation & Sport,Community and Leisure ,Premises related Expenditure,Cleaning and domestic supplies,Contract Cleaning - Non Estates,13/09/2018,250626,414.02,Hi-Spec Facilities Services Plc
L232,Environmental & Regulatory,"Cemetery, Cremation and Mortuary Services",Community and Leisure ,Premises related Expenditure,Cleaning and domestic supplies,Contract Cleaning - Non Estates,13/09/2018,250626,34.5,Hi-Spec Facilities Services Plc
L244,Cultural & Related,Open Spaces,Community and Leisure ,Premises related Expenditure,Cleaning and domestic supplies,Contract Cleaning - Non Estates,13/09/2018,250626,724.57,Hi-Spec Facilities Services Plc
T610,"Highways, Roads & Transport",Parking Services,Plan Pol & Transport,Premises related Expenditure,Cleaning and domestic supplies,Contract Cleaning - Non Estates,13/09/2018,250626,103.5,Hi-Spec Facilities Services Plc
E221,External Trading Accounts,Business Parks,Estates and Economic Development ,Premises related Expenditure,Cleaning and domestic supplies,Contract Cleaning - Non Estates,13/09/2018,250627,207.02,Hi-Spec Facilities Services Plc
E221,External Trading Accounts,Business Parks,Estates and Economic Development ,Premises related Expenditure,Cleaning and domestic supplies,Contract Cleaning - Non Estates,27/09/2018,251542,207.01,Hi-Spec Facilities Services Plc
E513,Cultural & Related,Culture & Heritage,Estates and Economic Development ,Premises related Expenditure,Cleaning and domestic supplies,Contract Cleaning - Non Estates,13/09/2018,250627,414.03,Hi-Spec Facilities Services Plc
E513,Cultural & Related,Culture & Heritage,Estates and Economic Development ,Premises related Expenditure,Cleaning and domestic supplies,Contract Cleaning - Non Estates,27/09/2018,251542,414.02,Hi-Spec Facilities Services Plc
E532,Central Services to the Public,Management & Support Services,Estates and Economic Development ,Premises related Expenditure,Cleaning and domestic supplies,Contract Cleaning - Non Estates,13/09/2018,250627,345.03,Hi-Spec Facilities Services Plc
E532,Central Services to the Public,Management & Support Services,Estates and Economic Development ,Premises related Expenditure,Cleaning and domestic supplies,Contract Cleaning - Non Estates,27/09/2018,251542,345.02,Hi-Spec Facilities Services Plc
E541,Environmental & Regulatory,Regulatory Services,Estates and Economic Development ,Premises related Expenditure,Cleaning and domestic supplies,Contract Cleaning - Non Estates,13/09/2018,250627,1932.13,Hi-Spec Facilities Services Plc
E541,Environmental & Regulatory,Regulatory Services,Estates and Economic Development ,Premises related Expenditure,Cleaning and domestic supplies,Contract Cleaning - Non Estates,27/09/2018,251542,1932.11,Hi-Spec Facilities Services Plc
L134,Cultural & Related,Recreation & Sport,Community and Leisure ,Premises related Expenditure,Cleaning and domestic supplies,Contract Cleaning - Non Estates,13/09/2018,250627,724.55,Hi-Spec Facilities Services Plc
L134,Cultural & Related,Recreation & Sport,Community and Leisure ,Premises related Expenditure,Cleaning and domestic supplies,Contract Cleaning - Non Estates,27/09/2018,251542,724.54,Hi-Spec Facilities Services Plc
L137,Cultural & Related,Recreation & Sport,Community and Leisure ,Premises related Expenditure,Cleaning and domestic supplies,Contract Cleaning - Non Estates,13/09/2018,250627,414.02,Hi-Spec Facilities Services Plc
L137,Cultural & Related,Recreation & Sport,Community and Leisure ,Premises related Expenditure,Cleaning and domestic supplies,Contract Cleaning - Non Estates,27/09/2018,251542,414.02,Hi-Spec Facilities Services Plc
L138,Cultural & Related,Recreation & Sport,Community and Leisure ,Premises related Expenditure,Cleaning and domestic supplies,Contract Cleaning - Non Estates,13/09/2018,250627,414.02,Hi-Spec Facilities Services Plc
L138,Cultural & Related,Recreation & Sport,Community and Leisure ,Premises related Expenditure,Cleaning and domestic supplies,Contract Cleaning - Non Estates,27/09/2018,251542,414.02,Hi-Spec Facilities Services Plc
L232,Environmental & Regulatory,"Cemetery, Cremation and Mortuary Services",Community and Leisure ,Premises related Expenditure,Cleaning and domestic supplies,Contract Cleaning - Non Estates,13/09/2018,250627,34.5,Hi-Spec Facilities Services Plc
L232,Environmental & Regulatory,"Cemetery, Cremation and Mortuary Services",Community and Leisure ,Premises related Expenditure,Cleaning and domestic supplies,Contract Cleaning - Non Estates,27/09/2018,251542,34.5,Hi-Spec Facilities Services Plc
L244,Cultural & Related,Open Spaces,Community and Leisure ,Premises related Expenditure,Cleaning and domestic supplies,Contract Cleaning - Non Estates,13/09/2018,250627,724.51,Hi-Spec Facilities Services Plc
L244,Cultural & Related,Open Spaces,Community and Leisure ,Premises related Expenditure,Cleaning and domestic supplies,Contract Cleaning - Non Estates,27/09/2018,251542,724.57,Hi-Spec Facilities Services Plc
T610,"Highways, Roads & Transport",Parking Services,Plan Pol & Transport,Premises related Expenditure,Cleaning and domestic supplies,Contract Cleaning - Non Estates,13/09/2018,250627,103.5,Hi-Spec Facilities Services Plc
T610,"Highways, Roads & Transport",Parking Services,Plan Pol & Transport,Premises related Expenditure,Cleaning and domestic supplies,Contract Cleaning - Non Estates,27/09/2018,251542,103.5,Hi-Spec Facilities Services Plc
L221,Cultural & Related,Open Spaces,Community and Leisure ,Premises related Expenditure,Grounds Maintenance Costs,Gm - Additional Works,13/09/2018,250597,950,Personal Data - Data Protection Act 1998
L221,Cultural & Related,Open Spaces,Community and Leisure ,Premises related Expenditure,Repairs Alterations & Maintenance of Buildings,Estates premises costs - AMP,13/09/2018,250597,4785,Personal Data - Data Protection Act 1998
2228,Cultural & Related,Open Spaces,Community and Leisure ,Supplies & Services,Services,Property Acquisition,12/09/2018,250941,7000,HMRC
E532,Central Services to the Public,Management & Support Services,Estates and Economic Development ,Premises related Expenditure,Repairs Alterations & Maintenance of Buildings,Building Maint - Non Estates,13/09/2018,250607,7100,Rjb M & E
X121,Central Services,Corporate & Democratic Core,Corporate & Democratic,Supplies & Services,Communications & Computing,Software Maintenance,27/09/2018,250274,6022.71,Astech Consultants Limited
R850,Central Services to the Public,Local Tax Collection,Revenues,Supplies & Services,Communications & Computing,Software Maintenance,13/09/2018,250348,661.87,Northgate Public Services Uk Ltd
R852,Central Services to the Public,Local Tax Collection,Revenues,Supplies & Services,Communications & Computing,Software Maintenance,13/09/2018,250348,2647.49,Northgate Public Services Uk Ltd
R931,Housing Services,Housing Benefits ,Revenues,Supplies & Services,Communications & Computing,Software Maintenance,13/09/2018,250348,1654.68,Northgate Public Services Uk Ltd
R933,Central Services to the Public,Local Tax Collection,Revenues,Supplies & Services,Communications & Computing,Software Maintenance,13/09/2018,250348,1654.68,Northgate Public Services Uk Ltd
T600,"Highways, Roads & Transport",Parking Services,Plan Pol & Transport,Transport Related Expenditure,Direct Transport Costs,Tyres,13/09/2018,250588,219.94,Ats Euromaster Limited
W600,Environmental & Regulatory,Street Cleansing (not chargeable to Highways),Environmental,Transport Related Expenditure,Direct Transport Costs,Tyres,13/09/2018,250588,472.21,Ats Euromaster Limited
W700,Environmental & Regulatory,Waste management,Environmental,Transport Related Expenditure,Direct Transport Costs,Tyres,13/09/2018,250588,4953.23,Ats Euromaster Limited
W701,Environmental & Regulatory,Waste management,Environmental,Transport Related Expenditure,Direct Transport Costs,Tyres,13/09/2018,250588,128.98,Ats Euromaster Limited
W800,Central Services to the Public,Management & Support Services,Environmental,Transport Related Expenditure,Direct Transport Costs,Repair Materials,13/09/2018,250588,865.63,Ats Euromaster Limited
B221,Central Services to the Public,Elections,Legal & Democratic,Supplies & Services,"Printing, Stationery & General Office Expenses",External Printing,13/09/2018,249853,7631.08,Financial Data Management Plc
W700,Environmental & Regulatory,Waste management,Environmental,Supplies & Services,Miscellaneous Expenses,Recycling Bank Emptying,06/09/2018,249746,7657.77,Fcc Recycling (Uk) Ltd
1652,Environmental & Regulatory,Regulatory Services,Housing and Environmental Health ,Supplies & Services,Grants and subscriptions,Capital Grants,20/09/2018,251570,9285.45,Sahar Building Services Ltd
1651,Environmental & Regulatory,Regulatory Services,Housing and Environmental Health ,Supplies & Services,Grants and subscriptions,Capital Grants,20/09/2018,251567,10148.55,Sahar Building Services Ltd
W821,Central Services to the Public,Management & Support Services,Environmental,Transport Related Expenditure,Direct Transport Costs,Diesel,06/09/2018,249781,9450.9,Wp Group Limited
T610,"Highways, Roads & Transport",Parking Services,Plan Pol & Transport,Premises related Expenditure,Repairs Alterations & Maintenance of Buildings,Car Park General Repairs,06/09/2018,249682,10030.23,Irvine Grenson Ltd
X160,Central Services,Corporate & Democratic Core,Corporate & Democratic,Supplies & Services,Miscellaneous Expenses,External Audit Fees,06/09/2018,247835,10170,Ernst & Young Llp
X121,Central Services,Corporate & Democratic Core,Corporate & Democratic,Supplies & Services,Communications & Computing,Computer Hardware,06/09/2018,249775,11272.99,Pure Technology Group
B221,Central Services to the Public,Elections,Legal & Democratic,Supplies & Services,Communications & Computing,Computer Software,13/09/2018,249852,13671,Xpress Software Solutions Ltd
W821,Central Services to the Public,Management & Support Services,Environmental,Transport Related Expenditure,Direct Transport Costs,Diesel,13/09/2018,250866,12741.66,Wp Group Limited
W825,Central Services to the Public,Management & Support Services,Environmental,Transport Related Expenditure,Direct Transport Costs,Red Derv,13/09/2018,250866,1502.75,Wp Group Limited
L251,Cultural & Related,Open Spaces,Community and Leisure ,Premises related Expenditure,Grounds Maintenance Costs,Non Contract Tree Works,13/09/2018,250048,28929.84,Gristwood & Toms Ltd
R850,Central Services to the Public,Local Tax Collection,Revenues,Supplies & Services,Communications & Computing,Software Maintenance,06/09/2018,249778,4602.87,Northgate Public Services Uk Ltd
R852,Central Services to the Public,Local Tax Collection,Revenues,Supplies & Services,Communications & Computing,Software Maintenance,06/09/2018,249778,7671.45,Northgate Public Services Uk Ltd
R931,Housing Services,Housing Benefits ,Revenues,Supplies & Services,Communications & Computing,Software Maintenance,06/09/2018,249778,12274.32,Northgate Public Services Uk Ltd
R933,Central Services to the Public,Local Tax Collection,Revenues,Supplies & Services,Communications & Computing,Software Maintenance,06/09/2018,249778,6137.16,Northgate Public Services Uk Ltd
E532,Central Services to the Public,Management & Support Services,Estates and Economic Development ,Premises related Expenditure,Repairs Alterations & Maintenance of Buildings,Estates premises costs - AMP,13/09/2018,250893,34000,Safespec Building Services Ltd
2711,Central Services to the Public,Management & Support Services,Environmental,Transport Related Expenditure,Direct Transport Costs,Vehicles and Plant,13/09/2018,250912,161788,Dennis Eagle Ltd
2052,Cultural & Related,Recreation & Sport,Community and Leisure ,Third Party Payments,Private contractors,Main Contractor Costs,27/09/2018,251772,166403.71,Places For People Leisure Ltd - Test Valley
2052,Cultural & Related,Recreation & Sport,Community and Leisure ,Third Party Payments,Private contractors,Main Contractor Costs,13/09/2018,250253,1196127.25,Places For People Leisure Ltd - Developments
